bitfinex/quotes_SOLUSD_20240905
["timestamp","ask_amount","ask_price","bid_price","bid_amount"]
[1725547975434,56.5681,132.59,132.46,7.5492]
[1725547975435,7.5465,132.52,132.46,7.5492]
[1725547975610,87.7121,132.59,132.47,7.5488]
[1725547975611,7.5456,132.53,132.47,7.5488]
[1725547975817,20.0,132.52,132.45,18.874]
[1725547976011,20.0,132.52,132.45,26.4238]
[1725547976204,27.5464,132.52,132.46,7.5492]
[1725547976723,27.5464,132.52,132.45,18.874]
[1725547976902,20.0,132.52,132.47,18.8716]
[1725547977312,20.0,132.52,132.48,1.50936715]
[1725547977527,20.0,132.53,132.49,18.8686]
[1725547977743,20.0,132.58,132.52,7.5456]
[1725547977931,20.0,132.58,132.48,45.0]
[1725547977932,20.0,132.6,132.48,45.0]
[1725547978135,7.5444,132.55,132.5,7.5471]
[1725547978310,7.5444,132.55,132.48,45.0]
[1725547978311,7.5455,132.53,132.48,18.8695]
[1725547978820,7.545,132.54,132.49,7.5474]
[1725547979022,20.0,132.53,132.5,7.547]
[1725547979335,20.0,132.54,132.5,18.8676]
[1725547980430,24.9449,132.62,132.52,18.8643]
[1725547980611,24.9449,132.62,132.48,37.7409]
[1725547980612,7.78412397,132.58,132.48,37.7409]
[1725547980820,20.0,132.57,132.45,7.5497]
[1725547981126,7.5464,132.52,132.46,7.5489]
[1725547981332,20.0,132.51,132.47,18.872]
[1725547981509,7.5464,132.52,132.47,18.872]
[1725547981706,7.5477,132.5,132.44,18.8755]
[1725547982110,7.5467,132.51,132.46,7.5493]
[1725547982313,20.0,132.5,132.45,7.5498]
[1725547982823,20.0,132.5,132.44,18.8755]
[1725547982824,27.5472,132.5,132.44,26.4259]
[1725547983024,27.5472,132.5,132.45,7.55]
[1725547983227,20.0,132.5,132.46,7.5492]
[1725547983539,20.0,132.51,132.46,18.8729]
[1725547983703,13.873,132.53,132.48,18.8701]
[1725547983704,20.0,132.52,132.48,18.8701]
[1725547984118,27.5464,132.52,132.46,7.549]
[1725547984314,27.5464,132.52,132.47,7.5487]
[1725547984516,20.0,132.52,132.47,7.5487]
[1725547985235,20.0,132.52,132.48,7.5482]
[1725547985541,20.0,132.52,132.45,18.8747]
[1725547985542,7.5438,132.56,132.46,37.745]
[1725547985846,7.5438,132.56,132.5,7.547]
[1725547986032,7.5438,132.56,132.51,7.5462]
[1725547986241,13.6365,132.57,132.51,7.5462]
[1725547986442,13.6365,132.57,132.47,45.0]
[1725547986443,6.1999,132.62,132.48,68.30513242]
[1725547986644,7.541,132.61,132.56,7.5436]
[1725547986828,13.7402,132.62,132.56,7.5436]
[1725547987247,7.5413,132.61,132.55,18.8599]
[1725547987452,6.1999,132.62,132.55,18.8599]
[1725547987767,7.5414,132.6,132.55,18.8599]
[1725547987943,6.1999,132.62,132.53,7.5453]
[1725547988126,7.5427,132.58,132.52,26.4101]
[1725547988452,7.5427,132.58,132.52,18.8643]
[1725547988668,7.5442,132.56,132.49,18.8689]
[1725547988948,7.5448,132.55,132.48,18.87]
[1725547989320,20.0,132.54,132.48,18.87]
[1725547989530,7.545,132.54,132.48,26.4183]
[1725547989735,7.5444,132.55,132.49,7.5476]
[1725547989946,27.5449,132.54,132.49,7.5476]
[1725547990254,20.0,132.53,132.49,7.5476]
[1725547990440,15.3808,132.59,132.5,18.8673]
[1725547990627,18.8529,132.61,132.52,7.5458]
[1725547990628,7.5427,132.58,132.52,7.5458]
[1725547990822,7.5421,132.59,132.53,7.545]
[1725547991444,7.5421,132.59,132.52,18.864]
[1725547991652,13.7404,132.62,132.56,7.5431]
[1725547991868,7.541,132.61,132.55,7.5441]
[1725547992161,6.1999,132.62,132.55,7.5442]
[1725547992162,7.5416,132.6,132.55,7.5442]
[1725547992373,7.541,132.61,132.55,7.5442]
[1725547992730,7.5416,132.6,132.55,7.5442]
[1725547993032,7.5421,132.59,132.54,26.4062]
[1725547993624,7.5415,132.6,132.54,26.4062]
[1725547994035,6.1999,132.62,132.51,18.8658]
[1725547994242,7.5437,132.56,132.51,26.4122]
[1725547994450,7.5443,132.55,132.51,18.8658]
[1725547994660,7.5439,132.56,132.51,18.8658]
[1725547994949,18.8556,132.59,132.48,18.8698]
[1725547995143,18.8584,132.57,132.48,18.8698]
[1725547995348,20.0,132.56,132.51,7.5464]
[1725547995541,6.1999,132.62,132.52,18.8646]
[1725547995729,7.5416,132.6,132.54,7.5444]
[1725547995933,20.0,132.59,132.46,89.53773242]
[1725547996131,7.5435,132.57,132.52,7.5459]
[1725547996651,20.0,132.59,132.53,18.8631]
[1725547996953,20.0,132.61,132.53,18.8631]
[1725547997127,7.5432,132.57,132.53,18.8631]
[1725547997750,20.0,132.61,132.53,18.8631]
[1725547997956,25.051,132.62,132.55,7.5438]
[1725547997957,7.5415,132.6,132.55,7.5438]
[1725547998162,11.44775701,132.66,132.56,0.41926301]
[1725547998458,7.5407,132.62,132.57,26.4005]
[1725547998664,7.5398,132.63,132.58,7.5425]
[1725547998951,7.5394,132.64,132.59,7.5419]
[1725547999271,7.5408,132.62,132.57,18.8574]
[1725547999432,7.5408,132.62,132.51,18.8657]
[1725547999433,18.8513,132.62,132.51,18.8657]
[1725547999642,7.5428,132.58,132.52,7.5456]
[1725547999948,20.0,132.57,132.52,7.5456]
[1725548000143,20.0,132.57,132.53,7.5451]
[1725548000531,20.0,132.58,132.54,7.5447]
[1725548001151,7.5422,132.59,132.54,7.5447]
[1725548002364,18.8469,132.65,132.55,20.36914665]
[1725548002533,7.5409,132.61,132.56,7.5433]
[1725548002737,7.5414,132.6,132.55,26.4047]
[1725548003063,7.541,132.61,132.56,7.5434]
[1725548003962,7.5404,132.62,132.57,7.543]
[1725548004266,27.541,132.61,132.56,7.5436]
[1725548004637,7.5416,132.6,132.55,26.4047]
[1725548004839,27.541,132.61,132.56,7.5436]
[1725548005266,20.0,132.61,132.57,20.36613469]
[1725548005437,20.0,132.65,132.57,18.8577]
[1725548005634,7.5407,132.62,132.57,18.8577]
[1725548005859,7.5411,132.61,132.56,7.5432]
[1725548006658,7.5405,132.62,132.57,7.543]
[1725548006967,20.0,132.65,132.58,18.8559]
[1725548007475,7.54,132.63,132.58,18.8559]
[1725548007679,7.5395,132.64,132.59,7.5419]
[1725548007973,20.0,132.63,132.58,18.8559]
[1725548008164,20.0,132.65,132.58,18.8559]
[1725548008365,27.5387,132.65,132.6,7.5413]
[1725548008676,7.5387,132.65,132.6,7.5413]
[1725548009447,7.5382,132.66,132.61,7.5407]
[1725548009651,7.5382,132.66,132.56,15.1444]
[1725548009652,7.5395,132.64,132.59,7.5415]
[1725548009863,7.5403,132.62,132.57,26.4]
[1725548010047,18.844,132.67,132.59,7.542]
[1725548010048,7.5399,132.63,132.59,7.542]
[1725548010247,7.5392,132.64,132.59,7.542]
[1725548010669,7.5398,132.63,132.58,7.5424]
[1725548010871,50.0,132.67,132.54,18.861]
[1725548011058,18.8524,132.61,132.48,16.2656]
[1725548011272,7.5432,132.57,132.52,7.5458]
[1725548011861,7.5449,132.54,132.49,7.5477]
[1725548012066,7.5454,132.53,132.48,18.8697]
[1725548012254,18.8588,132.57,132.49,7.5474]
[1725548012456,20.0,132.56,132.48,18.8697]
[1725548012773,20.0,132.56,132.44,16.6299]
[1725548012774,7.5461,132.52,132.45,18.8747]
[1725548013073,7.5454,132.53,132.45,18.8747]
[1725548013272,7.545,132.54,132.48,7.5482]
[1725548013572,7.5456,132.53,132.47,7.5487]
[1725548014283,38.8602,132.56,132.44,16.6299]
[1725548014455,38.8602,132.56,132.4,16.0246]
[1725548014456,7.5482,132.49,132.4,16.0246]
[1725548014656,7.5472,132.5,132.44,7.5504]
[1725548014965,20.0,132.49,132.42,18.878]
[1725548015163,20.0,132.49,132.46,7.5494]
[1725548015365,7.5464,132.52,132.46,7.5494]
[1725548015677,20.0,132.51,132.46,7.5494]
[1725548015979,20.0,132.51,132.47,7.5488]
[1725548016472,6.0177,132.55,132.49,7.5477]
[1725548016473,20.0,132.52,132.49,7.5477]
[1725548016677,20.0,132.54,132.49,7.5477]
[1725548017065,27.5449,132.54,132.48,7.5482]
[1725548017474,20.0,132.54,132.49,7.5474]
[1725548017796,15.7284,132.59,132.49,7.5474]
[1725548017988,7.5426,132.58,132.52,7.546]
[1725548018787,13.8585,132.59,132.51,18.8664]
[1725548019075,6.3164,132.59,132.54,7.5447]
[1725548019268,13.8585,132.59,132.54,7.5447]
[1725548019850,21.48491305,132.64,132.55,7.5442]
[1725548020071,7.5419,132.6,132.53,18.8624]
[1725548020379,7.5439,132.56,132.5,26.4144]
[1725548020576,7.5444,132.55,132.5,18.8674]
[1725548020959,18.8546,132.6,132.5,18.8674]
[1725548021159,18.8546,132.6,132.47,18.8718]
[1725548021358,7.5449,132.54,132.48,7.5477]
[1725548021571,7.5444,132.55,132.5,7.547]
[1725548021770,20.0,132.59,132.49,18.8687]
[1725548022070,7.5431,132.57,132.51,18.8654]
[1725548022396,20.0,132.56,132.48,18.87]
[1725548022595,7.5449,132.54,132.49,7.5476]
[1725548022774,7.5444,132.55,132.49,7.5476]
[1725548022972,20.0,132.54,132.49,7.5476]
[1725548023602,7.5456,132.53,132.48,26.4182]
[1725548023976,27.5449,132.54,132.49,7.5477]
[1725548024695,27.5449,132.54,132.5,7.547]
[1725548024696,20.0,132.54,132.5,7.547]
[1725548024879,20.0,132.55,132.5,7.547]
[1725548025079,24.15150234,132.6,132.5,7.547]
[1725548025080,20.0,132.59,132.5,7.547]
[1725548025869,7.5439,132.56,132.51,7.5464]
[1725548026198,20.0,132.59,132.52,1.5090764]
[1725548026199,7.5421,132.59,132.52,1.5090764]
[1725548026491,6.4415,132.63,132.49,51.82429759]
[1725548026683,6.4415,132.63,132.5,45.0]
[1725548027077,7.5418,132.6,132.54,18.8615]
[1725548027274,7.5418,132.6,132.54,26.4058]
[1725548027474,7.5436,132.57,132.52,7.5458]
[1725548027712,7.5436,132.57,132.52,7.0458]
[1725548028279,7.5426,132.58,132.51,18.8655]
[1725548028588,18.8513,132.62,132.52,7.5456]
[1725548028589,27.5432,132.57,132.52,7.5456]
[1725548028792,6.4415,132.63,132.48,37.7391]
[1725548028793,6.4415,132.63,132.53,18.8629]
[1725548029093,20.0,132.62,132.53,18.8629]
[1725548029599,25.2916,132.63,132.55,18.8603]
[1725548029892,6.4415,132.63,132.56,7.5432]
[1725548030094,6.4415,132.63,132.55,18.8603]
[1725548030299,7.5409,132.61,132.55,26.4044]
[1725548030505,7.5431,132.58,132.52,26.4098]
[1725548030793,18.8517,132.62,132.52,26.4098]
[1725548031194,7.5427,132.58,132.52,26.4098]
[1725548031596,7.5438,132.56,132.51,7.5465]
[1725548031778,27.5444,132.55,132.49,18.8685]
[1725548031978,20.0,132.55,132.5,7.5467]
[1725548032179,7.542,132.59,132.54,7.5448]
[1725548032401,20.0,132.58,132.48,53.5172]
[1725548032713,7.5455,132.53,132.45,37.7492]
[1725548032999,6.2537,132.55,132.48,7.5479]
[1725548033302,7.5455,132.53,132.48,7.5479]
[1725548033876,7.5449,132.54,132.48,7.5479]
[1725548034099,20.0,132.53,132.49,7.5477]
[1725548034775,20.0,132.53,132.5,7.5467]
[1725548035097,20.0,132.54,132.5,7.5469]
[1725548035290,7.5458,132.53,132.46,18.8728]
[1725548035493,7.5467,132.51,132.46,18.8728]
[1725548035803,27.5472,132.5,132.45,7.5498]
[1725548036100,20.0,132.5,132.46,7.5494]
[1725548036393,20.0,132.5,132.47,7.5488]
[1725548036616,16.2246,132.57,132.48,0.92873619]
[1725548036822,7.5433,132.57,132.46,43.19605277]
[1725548036982,24.28127585,132.6,132.46,43.19605277]
[1725548037187,24.28127585,132.6,132.47,45.0]
[1725548037499,7.5438,132.56,132.51,7.5464]
[1725548038107,7.5438,132.56,132.48,7.5481]
[1725548038108,7.5456,132.53,132.48,7.5481]
[1725548038495,20.0,132.55,132.47,18.8716]
[1725548039014,7.5464,132.52,132.47,18.8716]
[1725548039310,7.5467,132.51,132.46,7.549]
[1725548040213,57.7236,132.55,132.41,18.8796]
[1725548040386,7.5467,132.51,132.45,7.5496]
[1725548040587,20.0,132.5,132.43,18.8774]
[1725548041202,20.0,132.51,132.43,18.8774]
[1725548041382,27.547,132.51,132.45,7.5499]
[1725548041586,20.0,132.51,132.41,7.5518]
[1725548041786,20.0,132.51,132.4,41.8535]
[1725548042206,38.8673,132.51,132.4,18.8813]
[1725548042411,7.5494,132.46,132.4,26.4337]
[1725548042612,7.5489,132.47,132.41,1.51024191]
[1725548042923,27.5496,132.46,132.41,7.5522]
[1725548043208,6.0945,132.44,132.36,16.4943]
[1725548043413,20.0,132.43,132.34,18.8904]
[1725548043586,7.5527,132.41,132.35,7.5555]
[1725548043792,7.5547,132.37,132.32,23.3079]
[1725548043989,7.5547,132.37,132.28,0.8608309]
[1725548043990,50.0,132.42,132.28,17.5190309]
[1725548044202,20.0,132.36,132.28,0.8608309]
[1725548044438,7.5562,132.34,132.28,0.8608309]
[1725548044602,20.0,132.33,132.3,7.5584]
[1725548044797,20.0,132.36,132.3,18.896]
[1725548045208,20.0,132.4,132.3,18.896]
[1725548045411,7.5546,132.37,132.31,7.5578]
[1725548045625,20.0,132.36,132.31,7.5578]
[1725548045809,20.0,132.36,132.32,7.5573]
[1725548046002,7.5528,132.4,132.33,7.5567]
[1725548046328,20.0,132.4,132.34,7.5561]
[1725548046824,20.0,132.4,132.35,7.5556]
[1725548047614,20.0,132.4,132.37,7.5545]
[1725548047832,20.0,132.4,132.36,18.8876]
[1725548048009,7.5511,132.44,132.36,18.8876]
[1725548048210,7.5511,132.44,132.36,26.4422]
[1725548048423,22.3203,132.45,132.36,18.8876]
[1725548048626,6.2898,132.45,132.4,7.5527]
[1725548048826,6.2898,132.45,132.39,26.4368]
[1725548049233,6.5403,132.49,132.41,7.5518]
[1725548049436,6.5403,132.49,132.42,7.5516]
[1725548049727,7.5495,132.46,132.39,26.4363]
[1725548049902,7.5489,132.47,132.39,18.8834]
[1725548050108,7.5495,132.46,132.4,7.5526]
[1725548050334,14.0881,132.49,132.43,7.551]
[1725548050543,6.3961,132.53,132.4,15.1124]
[1725548050834,6.3961,132.53,132.44,18.8761]
[1725548050835,7.5474,132.5,132.44,18.8761]
[1725548051027,25.0841,132.57,132.46,18.8722]
[1725548051234,6.2249,132.57,132.46,18.8722]
[1725548051420,7.5442,132.56,132.46,18.8722]
[1725548051620,7.544,132.56,132.49,7.5476]
[1725548051833,6.2249,132.57,132.47,7.5484]
[1725548052036,7.5438,132.56,132.48,18.8694]
[1725548052227,6.2249,132.57,132.49,45.0]
[1725548052428,13.7683,132.57,132.5,26.4132]
[1725548052814,7.5426,132.58,132.51,7.5462]
[1725548053621,7.5432,132.57,132.5,26.4136]
[1725548053839,18.8552,132.59,132.49,16.1207]
[1725548054020,7.5449,132.54,132.47,18.8719]
[1725548054357,7.545,132.54,132.47,26.4207]
[1725548054522,68.8552,132.59,132.47,18.8719]
[1725548054838,18.8591,132.57,132.45,16.1207]
[1725548055044,7.5472,132.5,132.45,16.1207]
[1725548055543,7.5465,132.52,132.45,23.6706]
[1725548055736,7.5454,132.53,132.47,26.4209]
[1725548055940,20.0,132.52,132.47,26.4209]
[1725548056126,20.0,132.56,132.47,18.8721]
[1725548056333,20.0,132.56,132.45,16.1207]
[1725548056642,18.862,132.55,132.46,7.5489]
[1725548056817,7.5455,132.53,132.47,7.5487]
[1725548057015,20.0,132.52,132.47,7.5487]
[1725548057222,20.0,132.52,132.45,16.1207]
[1725548057621,20.0,132.57,132.46,18.8727]
[1725548058016,7.545,132.54,132.48,7.5482]
[1725548058227,20.0,132.53,132.48,7.5482]
[1725548058431,20.0,132.53,132.48,18.8698]
[1725548058740,27.545,132.54,132.48,18.8698]
[1725548058953,7.5457,132.53,132.48,18.8698]
[1725548059157,7.5457,132.53,132.45,34.9952]
[1725548059158,20.0,132.52,132.45,34.9952]
[1725548059344,20.0,132.54,132.47,18.8713]
[1725548059651,7.5454,132.53,132.48,7.5478]
[1725548059853,20.0,132.54,132.48,7.5478]
[1725548060056,7.5449,132.54,132.48,7.5478]
[1725548060564,7.5449,132.54,132.45,16.1207]
[1725548060565,18.8604,132.56,132.45,16.1207]
[1725548060766,7.5473,132.5,132.45,23.6706]
[1725548061261,7.5466,132.51,132.45,23.6706]
[1725548061843,7.5472,132.5,132.45,23.6706]
[1725548062149,20.0,132.49,132.41,26.4321]
[1725548062354,7.5493,132.47,132.41,26.4321]
[1725548062567,18.8661,132.52,132.44,7.5502]
[1725548062737,7.5472,132.5,132.45,7.5497]
[1725548062942,20.0,132.49,132.46,7.549]
[1725548063249,7.5473,132.5,132.45,18.8741]
[1725548063451,7.5478,132.49,132.43,7.551]
[1725548064358,7.547,132.51,132.42,18.8785]
[1725548064657,7.547,132.51,132.44,18.8756]
[1725548064964,7.5462,132.52,132.46,7.5493]
[1725548065266,27.5468,132.51,132.45,7.5499]
[1725548066061,27.5468,132.51,132.46,7.5492]
[1725548066360,20.0,132.51,132.44,18.8756]
[1725548066559,57.7279,132.53,132.41,18.8798]
[1725548066735,18.8683,132.5,132.41,18.8798]
[1725548067058,57.7279,132.53,132.4,23.0792]
[1725548067059,7.5507,132.44,132.4,15.5265]
[1725548067260,18.8712,132.48,132.38,18.8845]
[1725548067448,18.8742,132.46,132.37,6.0918]
[1725548067655,7.5512,132.43,132.38,7.5539]
[1725548067839,7.5517,132.42,132.35,16.587]
[1725548068158,20.0,132.45,132.35,16.587]
[1725548068159,7.5529,132.4,132.35,16.587]
[1725548068345,18.8775,132.44,132.35,24.1426]
[1725548068664,20.0,132.43,132.35,24.1426]
[1725548069156,7.5524,132.41,132.36,7.5551]
[1725548069365,20.0,132.43,132.35,16.587]
[1725548069366,18.8796,132.42,132.35,16.587]
[1725548069539,18.8796,132.42,132.32,18.8931]
[1725548069540,7.5549,132.37,132.32,18.8931]
[1725548069861,7.5549,132.37,132.32,26.4504]
[1725548070241,7.5532,132.4,132.34,18.89]
[1725548070439,7.5532,132.4,132.34,26.4458]
[1725548070643,7.5532,132.4,132.34,26.4462]
[1725548070951,7.5535,132.39,132.34,26.4462]
[1725548071146,7.554,132.38,132.33,7.5566]
[1725548071351,7.5546,132.37,132.32,7.5573]
[1725548071665,7.5552,132.36,132.31,35.0133]
[1725548072351,7.5563,132.34,132.28,19.7591309]
[1725548072559,7.5563,132.34,132.29,7.5587]
[1725548073145,7.5558,132.35,132.29,7.5587]
[1725548073347,7.5558,132.35,132.3,7.5583]
[1725548073660,7.5553,132.36,132.31,7.5579]
[1725548073865,7.5553,132.36,132.32,1.24211195]
[1725548074183,7.5547,132.37,132.32,7.5574]
[1725548074475,7.5547,132.37,132.3,18.8956]
[1725548074476,7.5547,132.37,132.31,7.5575]
[1725548074680,7.5535,132.39,132.33,7.5563]
[1725548075967,7.553,132.4,132.35,7.5556]
[1725548076173,6.637,132.42,132.34,18.8901]
[1725548076469,7.5535,132.39,132.33,7.5567]
[1725548076669,7.5545,132.38,132.32,7.5573]
[1725548076966,6.637,132.42,132.33,18.8917]
[1725548077268,7.5532,132.4,132.35,7.5556]
[1725548077914,7.5509,132.44,132.39,7.5529]
[1725548078179,6.6321,132.46,132.37,18.886]
[1725548078349,7.5511,132.43,132.39,7.5531]
[1725548078547,7.5511,132.43,132.38,9.06426744]
[1725548078862,7.5517,132.42,132.38,1.51046744]
[1725548079055,7.5507,132.44,132.39,7.5529]
[1725548079263,7.5511,132.43,132.38,7.5539]
[1725548079760,7.5511,132.43,132.39,7.5534]
[1725548079967,7.55,132.45,132.4,7.5528]
[1725548080157,14.1816,132.46,132.41,8.22765949]
[1725548080672,7.5495,132.46,132.41,7.5521]
[1725548080977,7.549,132.47,132.42,7.5517]
[1725548081367,7.5487,132.48,132.43,8.19336562]
[1725548081686,6.3524,132.5,132.44,0.64192478]
[1725548081882,13.9001,132.5,132.44,7.5504]
[1725548082068,13.9001,132.5,132.45,7.5498]
[1725548082468,7.5478,132.49,132.44,7.5504]
[1725548082775,18.8658,132.52,132.4,18.8813]
[1725548082973,18.8658,132.52,132.41,7.5521]
[1725548083182,7.5494,132.46,132.41,7.5522]
[1725548083486,7.5488,132.48,132.42,7.5513]
[1725548083666,7.5478,132.49,132.42,18.8786]
[1725548083868,7.5484,132.48,132.42,18.8786]
[1725548084193,7.5488,132.47,132.42,26.4301]
[1725548084369,18.8658,132.52,132.42,18.8786]
[1725548084568,7.5472,132.5,132.45,7.5498]
[1725548084885,7.5484,132.48,132.43,7.5511]
[1725548085092,7.549,132.47,132.41,18.8799]
[1725548085300,20.0,132.51,132.45,7.55]
[1725548085483,25.2734,132.54,132.42,45.0]
[1725548085484,20.0,132.53,132.42,45.0]
[1725548085786,7.5483,132.48,132.43,7.5506]
[1725548085993,7.5478,132.49,132.44,7.5505]
[1725548086693,18.8657,132.52,132.42,18.8786]
[1725548086986,7.549,132.47,132.42,26.4302]
[1725548087594,7.5483,132.48,132.43,7.5511]
[1725548087891,20.0,132.51,132.44,7.5504]
[1725548088098,7.5476,132.5,132.45,7.5498]
[1725548088273,20.0,132.49,132.41,18.8799]
[1725548088470,7.549,132.47,132.42,7.5511]
[1725548088689,7.55,132.45,132.41,18.8799]
[1725548088882,7.5496,132.46,132.41,26.432]
[1725548089195,20.0,132.45,132.41,26.432]
[1725548089583,27.55,132.45,132.41,18.8799]
[1725548089785,27.55,132.45,132.4,7.5527]
[1725548090886,27.55,132.45,132.36,37.7737]
[1725548091090,20.0,132.45,132.41,7.5522]
[1725548091294,7.549,132.47,132.37,45.0]
[1725548091492,20.0,132.46,132.37,45.0]
[1725548091693,7.549,132.47,132.37,45.0]
[1725548091998,7.5501,132.45,132.4,7.5526]
[1725548092293,7.5501,132.45,132.41,7.5522]
[1725548092668,7.5505,132.44,132.4,7.5526]
[1725548092871,7.5501,132.45,132.4,7.5526]
[1725548093072,7.5496,132.46,132.41,7.5522]
[1725548093268,7.549,132.47,132.42,7.5516]
[1725548093501,20.0,132.46,132.41,18.8804]
[1725548093683,26.6413,132.46,132.37,52.5541]
[1725548093995,7.5513,132.43,132.37,45.0]
[1725548094194,7.552,132.42,132.37,18.8854]
[1725548094373,7.5513,132.43,132.38,7.5539]
[1725548094985,7.5513,132.43,132.39,7.5533]
[1725548096173,7.5506,132.44,132.4,7.5527]
[1725548096372,26.6413,132.46,132.4,7.5527]
[1725548096577,7.55,132.45,132.4,7.5527]
[1725548096804,20.0,132.44,132.41,7.5521]
[1725548097717,7.5512,132.43,132.39,18.8832]
[1725548097902,27.5507,132.44,132.39,18.8832]
[1725548098425,27.5507,132.44,132.39,26.4364]
[1725548098629,20.0,132.44,132.39,18.8832]
[1725548098829,7.5527,132.41,132.36,18.887]
[1725548099123,7.5527,132.41,132.36,26.4416]
[1725548099431,7.5527,132.41,132.37,7.5543]
[1725548099602,7.5519,132.42,132.37,7.5543]
[1725548100126,7.5519,132.42,132.38,7.5537]
[1725548100337,20.0,132.45,132.4,7.5526]
[1725548100623,14.1911,132.46,132.41,7.5521]
[1725548100799,7.55,132.45,132.41,7.5521]
[1725548101522,6.6413,132.46,132.39,7.5532]
[1725548101523,7.5512,132.43,132.39,7.5532]
[1725548102025,6.6413,132.46,132.39,7.5532]
[1725548102026,7.5507,132.44,132.4,7.5528]
[1725548102404,7.5507,132.44,132.39,18.8833]
[1725548102628,7.5507,132.44,132.33,37.7825]
[1725548102629,6.6413,132.46,132.42,7.5517]
[1725548102797,20.0,132.45,132.41,26.4322]
[1725548103127,20.0,132.45,132.38,18.8842]
[1725548103326,7.5507,132.44,132.39,7.5532]
[1725548103909,20.0,132.45,132.41,7.5518]
[1725548104223,20.0,132.45,132.42,7.5515]
[1725548104437,20.0,132.45,132.42,26.4298]
[1725548104628,7.5504,132.45,132.39,18.8829]
[1725548104927,6.6413,132.46,132.36,18.8868]
[1725548105108,20.0,132.45,132.36,18.8868]
[1725548105517,20.0,132.45,132.37,7.5544]
[1725548105709,7.5523,132.41,132.36,26.4417]
[1725548105911,7.5517,132.42,132.36,18.8868]
[1725548106117,22.9232,132.42,132.36,18.8868]
[1725548106309,7.5523,132.41,132.36,26.4415]
[1725548106624,7.5523,132.41,132.33,37.7825]
[1725548106824,20.0,132.45,132.33,37.7825]
[1725548107034,20.0,132.45,132.37,26.4405]
[1725548107223,23.2025,132.46,132.38,7.5539]
[1725548107406,23.2025,132.46,132.37,26.4406]
[1725548107607,7.5511,132.43,132.37,26.4406]
[1725548107944,7.5511,132.43,132.38,45.0]
[1725548108230,7.5511,132.43,132.37,26.4406]
[1725548108535,11.96116539,132.49,132.39,18.883]
[1725548108716,7.5501,132.45,132.4,52.5524]
[1725548109025,6.4845,132.49,132.4,52.5524]
[1725548109026,7.5495,132.46,132.4,52.5524]
[1725548109223,7.5495,132.46,132.41,7.552]
[1725548109424,7.5495,132.46,132.4,52.5527]
[1725548109601,25.3546,132.49,132.39,26.4359]
[1725548109809,7.5494,132.46,132.4,45.0]
[1725548110136,7.5493,132.47,132.41,7.5521]
[1725548110304,7.5466,132.51,132.42,45.0]
[1725548110507,13.932,132.53,132.46,18.8735]
[1725548110800,7.5465,132.52,132.45,7.5499]
[1725548111026,7.5465,132.52,132.44,22.0278]
[1725548111332,7.5466,132.51,132.46,7.5492]
[1725548111832,7.5466,132.51,132.45,45.0]
[1725548112143,7.5459,132.53,132.46,7.5489]
[1725548112348,7.5459,132.53,132.47,7.5488]
[1725548112820,18.8605,132.56,132.45,18.8738]
[1725548113214,7.5479,132.49,132.44,15.7473]